[Event "XIX Najdorf Memorial 2019"]
[Site "Warsaw"]
[Date "2019.07.09"]
[Round "4.6"]
[White "Menezes, Christoph"]
[Black "Chomczyk, Marek"]
[Result "1-0"]
[ECO "E06"]
[WhiteElo "2413"]
[BlackElo "2270"]
[Annotator "NA"]
[PlyCount "77"]
[EventDate "2019.07.06"]
[EventType "swiss"]
[EventCountry "POL"]
[SourceTitle "playchess.com"]
[Source "ChessBase"]
[SourceQuality "1"]
[TimeControl "40/5400+30:1800+30"]

1. d4 {[%emt 0:00:00]} Nf6 {[%emt 0:01:00]} 2. c4 {[%emt 0:00:00]} e6 {[%emt 0:00:04]} 3. Nf3 {[%emt 0:00:00]} d5 {[%emt 0:00:03]} 4. g3 {[%emt 0:00:16]} Be7 {[%emt 0:00:05]} 5. Bg2 {[%emt 0:00:13]} O-O {[%emt 0:00:13]} 6. O-O {[%emt 0:00:22]} dxc4 {[%emt 0:00:03]} 7. Qc2 {[%emt 0:00:18]} a6 {[%emt 0:00:04]} 8. Qxc4 {[%emt 0:00:23]} b5 {[%emt 0:00:06]} 9. Qc2 {[%emt 0:00:09]} Bb7 {[%emt 0:00:03]} 10. Bd2 {[%emt 0:00:16]} Be4 {[%emt 0:00:06]} 11. Qc1 {[%emt 0:00:15]} Bb7 {[%emt 0:00:03]} 12. Bf4 {[%emt 0:00:45]} Nd5 {[%emt 0:03:34]} 13. Rd1 {[%emt 0:01:17]} Nxf4 {[%emt 0:02:22]} 14. Qxf4 {[%emt 0:00:19]} c5 {[%emt 0:00:27]} 15. Nc3 {[%emt 0:09:00]} cxd4 {[%emt 0:00:38]} 16. Nxd4 {[%emt 0:07:02]} Qb6 {[%emt 0:01:27]} 17. Bxb7 {[%emt 0:04:47]} Qxb7 {[%emt 0:00:05]} 18. Qe4 {[%emt 0:04:57]} Ra7 {[%emt 0:03:54]} 19. Rac1 {[%emt 0:15:49]} Qxe4 {[%emt 0:07:38]} 20. Nxe4 {[%emt 0:00:04]} Rd7 {[%emt 0:00:40]} 21. e3 {[%emt 0:02:14]} Rfd8 {[%emt 0:04:33]} 22. Rf1 {[%emt 0:04:35]} g6 {[%emt 0:15:35]} 23. f4 {[%emt 0:07:17]} Kg7 {[%emt 0:05:03]} 24. Rc2 {[%emt 0:04:01]} Re8 {[%emt 0:08:11]} 25. Rfc1 {[%emt 0:05:24]} Bf6 {[%emt 0:04:22]} 26. Nf3 {[%emt 0:00:47]} Red8 {[%emt 0:00:54]} 27. g4 {[%emt 0:02:07]} Rd1+ {[%emt 0:03:33]} 28. Rxd1 {[%emt 0:00:14]} Rxd1+ {[%emt 0:00:05]} 29. Kf2 {[%emt 0:00:05]} Nd7 {[%emt 0:02:08]} 30. Ke2 {[%emt 0:03:13]} Rd5 {[%emt 0:15:09]} 31. g5 {[%emt 0:00:55]} Bd8 {[%emt 0:00:30]} 32. Rc6 {[%emt 0:02:23]} Bb6 {[%emt 0:06:44]} 33. Nf6 {[%emt 0:03:34]} Rc5 {[%emt 0:01:09]} 34. Rd6 {[%emt 0:00:27]} Rc2+ {[%emt 0:00:56]} 35. Kd3 {[%emt 0:03:26]} Rf2 {[%emt 0:00:48]} 36. Nxd7 {[%emt 0:01:58]} Bc7 {[%emt 0:00:07]} 37. Rc6 {[%emt 0:00:07]} Bxf4 {[%emt 0:00:04]} 38. exf4 {[%emt 0:01:34]} Rxf3+ {[%emt 0:00:06]} 39. Ke4 {[%emt 0:00:03]} 1-0

[Event "XIX Najdorf Memorial 2019"]
[Site "Warsaw"]
[Date "2019.07.09"]
[Round "4.7"]
[White "Fedorov, Alexei"]
[Black "Zylka, Stanislaw"]
[Result "1-0"]
[ECO "B10"]
[WhiteElo "2551"]
[BlackElo "2308"]
[Annotator "ChessBase"]
[PlyCount "93"]
[EventDate "2019.07.06"]
[EventType "swiss"]
[EventCountry "POL"]
[SourceTitle "playchess.com"]
[Source "ChessBase"]
[SourceQuality "1"]
[TimeControl "40/5400+30:1800+30"]

1. e4 {[%emt 0:00:00]} c6 {[%emt 0:00:00]} 2. d3 {[%emt 0:00:33]} d5 {[%emt 0:00:00]} 3. Nd2 {[%emt 0:00:06]} e5 {[%emt 0:00:00]} 4. Ngf3 {[%emt 0:00:06]} Bd6 {[%emt 0:00:01]} 5. g3 {[%emt 0:01:40]} Nf6 {[%emt 0:00:10]} 6. Bg2 {[%emt 0:00:09]} O-O {[%emt 0:00:12]} 7. O-O {[%emt 0:00:10]} Re8 {[%emt 0:00:28]} 8. b3 {[%emt 0:04:41]} Nbd7 {[%emt 0:01:27]} 9. Bb2 {[%emt 0:00:47]} a5 {[%emt 0:01:06]} 10. a3 {[%emt 0:00:55]} Qc7 {[%emt 0:03:34]} 11. Nh4 {[%emt 0:08:46]} Nc5 {[%emt 0:13:18]} 12. h3 {[%emt 0:10:30]} Be6 {[%emt 0:16:58]} 13. Qf3 {[%emt 0:02:32]} b5 {[%emt 0:01:32]} 14. Rfe1 {[%emt 0:08:15]} Rac8 {[%emt 0:08:23]} 15. Nf5 {[%emt 0:07:46]} Bf8 {[%emt 0:00:48]} 16. exd5 {[%emt 0:04:33]} Bxd5 {[%emt 0:00:54]} 17. Nh6+ {[%emt 0:00:52]} gxh6 {[%emt 0:07:34]} 18. Qxf6 {[%emt 0:00:30]} Bg7 {[%emt 0:00:49]} 19. Qf5 {[%emt 0:00:55]} a4 {[%emt 0:03:22]} 20. b4 {[%emt 0:02:22]} Bxg2 {[%emt 0:00:37]} 21. Kxg2 {[%emt 0:00:34]} Nb7 {[%emt 0:00:22]} 22. Ne4 {[%emt 0:07:40]} c5 {[%emt 0:02:57]} 23. bxc5 {[%emt 0:06:17]} Nxc5 {[%emt 0:00:20]} 24. Nf6+ {[%emt 0:00:34]} Bxf6 {[%emt 0:00:12]} 25. Qxf6 {[%emt 0:00:04]} Re6 {[%emt 0:07:57]} 26. Qf5 {[%emt 0:01:27]} Rce8 {[%emt 0:00:54]} 27. Re2 {[%emt 0:01:17]} b4 {[%emt 0:12:47]} 28. axb4 {[%emt 0:05:02]} Qb7+ {[%emt 0:00:08]} 29. Kh2 {[%emt 0:03:51]} Qxb4 {[%emt 0:00:08]} 30. Ra2 {[%emt 0:04:06]} e4 {[%emt 0:04:28]} 31. Qg4+ {[%emt 0:04:59]} Rg6 {[%emt 0:00:07]} 32. Qf4 {[%emt 0:00:38]} Rge6 {[%emt 0:00:27]} 33. Bf6 {[%emt 0:01:32]} Rxf6 {[%emt 0:02:42]} 34. Qxf6 {[%emt 0:00:05]} Re6 {[%emt 0:00:16]} 35. Qd8+ {[%emt 0:02:25]} Kg7 {[%emt 0:00:07]} 36. Qd5 {[%emt 0:00:42]} Qc3 {[%emt 0:04:42]} 37. dxe4 {[%emt 0:03:01]} Qf3 {[%emt 0:03:19]} 38. c4 {[%emt 0:00:45]} Rxe4 {[%emt 0:01:48]} 39. Rxe4 {[%emt 0:00:41]} Nxe4 {[%emt 0:00:08]} 40. Qd4+ {[%emt 0:00:00]} Kg6 {[%emt 0:00:00]} 41. Rxa4 {[%emt 0:11:45]} Nxf2 {[%emt 0:03:20]} 42. Ra6+ {[%emt 0:00:35]} f6 {[%emt 0:00:12]} 43. Qd5 {[%emt 0:00:47]} Ne4 {[%emt 0:06:23]} 44. Qg8+ {[%emt 0:00:14]} Kh5 {[%emt 0:00:20]} 45. Ra5+ {[%emt 0:00:12]} f5 {[%emt 0:00:33]} 46. Rxf5+ {[%emt 0:00:18]} Qxf5 {[%emt 0:00:11]} 47. g4+ {[%emt 0:00:05]} 1-0

[Event "XIX Najdorf Memorial 2019"]
[Site "Warsaw"]
[Date "2019.07.09"]
[Round "4.7"]
[White "Sowul, Bartosz"]
[Black "Sieciechowicz, Marcin"]
[Result "0-1"]
[ECO "A05"]
[WhiteElo "2210"]
[BlackElo "2399"]
[Annotator "NA"]
[PlyCount "90"]
[EventDate "2019.07.06"]
[EventType "swiss"]
[EventCountry "POL"]
[SourceTitle "playchess.com"]
[Source "ChessBase"]
[SourceQuality "1"]
[TimeControl "40/5400+30:1800+30"]

1. Nf3 {[%emt 0:00:00]} Nf6 {[%emt 0:00:00]} 2. c4 {[%emt 0:00:17]} c6 {[%emt 0:00:00]} 3. g3 {[%emt 0:00:13]} g6 {[%emt 0:00:47]} 4. b3 {[%emt 0:01:30]} Bg7 {[%emt 0:00:32]} 5. Bb2 {[%emt 0:00:08]} O-O {[%emt 0:00:08]} 6. Bg2 {[%emt 0:00:14]} d6 {[%emt 0:00:34]} 7. d4 {[%emt 0:01:26]} e5 {[%emt 0:04:19]} 8. Nc3 {[%emt 0:10:34]} e4 {[%emt 0:03:20]} 9. Nd2 {[%emt 0:00:12]} d5 {[%emt 0:02:18]} 10. e3 {[%emt 0:04:58]} Bg4 {[%emt 0:02:36]} 11. Qc2 {[%emt 0:04:54]} Qd7 {[%emt 0:00:21]} 12. O-O {[%emt 0:08:40]} Na6 {[%emt 0:01:35]} 13. f3 {[%emt 0:05:48]} Nb4 {[%emt 0:06:45]} 14. Qb1 {[%emt 0:02:36]} exf3 {[%emt 0:05:59]} 15. Nxf3 {[%emt 0:04:49]} Bf5 {[%emt 0:03:11]} 16. Ne5 {[%emt 0:02:34]} Qe6 {[%emt 0:01:55]} 17. e4 {[%emt 0:12:02]} dxe4 {[%emt 0:04:13]} 18. Nxe4 {[%emt 0:00:10]} Nxe4 {[%emt 0:03:09]} 19. Bxe4 {[%emt 0:00:09]} Bxe4 {[%emt 0:00:29]} 20. Qxe4 {[%emt 0:00:08]} f6 {[%emt 0:02:14]} 21. a3 {[%emt 0:01:15]} Na6 {[%emt 0:02:32]} 22. Qg4 {[%emt 0:00:40]} Qxg4 {[%emt 0:06:44]} 23. Nxg4 {[%emt 0:00:09]} f5 {[%emt 0:01:21]} 24. Ne5 {[%emt 0:05:46]} Bxe5 {[%emt 0:00:33]} 25. dxe5 {[%emt 0:00:07]} Nc5 {[%emt 0:00:04]} 26. Rf3 {[%emt 0:08:52]} Rad8 {[%emt 0:01:47]} 27. Re3 {[%emt 0:08:38]} Kf7 {[%emt 0:03:30]} 28. a4 {[%emt 0:02:05]} Rfe8 {[%emt 0:07:17]} 29. a5 {[%emt 0:07:13]} Ke6 {[%emt 0:08:56]} 30. Rf1 {[%emt 0:06:57]} Rd3 {[%emt 0:03:23]} 31. Rxd3 {[%emt 0:01:33]} Nxd3 {[%emt 0:00:02]} 32. Bc3 {[%emt 0:00:11]} Nc5 {[%emt 0:01:44]} 33. Bb4 {[%emt 0:01:03]} Ne4 {[%emt 0:03:42]} 34. Rd1 {[%emt 0:00:18]} Rc8 {[%emt 0:04:41]} 35. Bd6 {[%emt 0:00:45]} Rd8 {[%emt 0:00:23]} 36. g4 {[%emt 0:00:34]} fxg4 {[%emt 0:04:56]} 37. Re1 {[%emt 0:00:29]} Nxd6 {[%emt 0:00:33]} 38. exd6+ {[%emt 0:00:05]} Kxd6 {[%emt 0:00:06]} 39. b4 {[%emt 0:00:46]} Rf8 {[%emt 0:04:46]} 40. Re4 {[%emt 0:00:00]} h5 {[%emt 0:00:00]} 41. c5+ {[%emt 0:01:22]} Kd5 {[%emt 0:02:42]} 42. Re7 {[%emt 0:00:48]} Rb8 {[%emt 0:00:03]} 43. Kf2 {[%emt 0:02:49]} Kc4 {[%emt 0:00:32]} 44. Re4+ {[%emt 0:01:08]} Kb5 {[%emt 0:00:30]} 45. Kg3 {[%emt 0:00:44]} Rf8 {[%emt 0:00:17]} 0-1

[Event "XIX Najdorf Memorial 2019"]
[Site "Warsaw"]
[Date "2019.07.09"]
[Round "4.8"]
[White "Grib, Roman"]
[Black "Noe, Christopher"]
[Result "0-1"]
[ECO "B40"]
[WhiteElo "2421"]
[BlackElo "2534"]
[Annotator "ChessBase"]
[PlyCount "130"]
[EventDate "2019.07.06"]
[EventType "swiss"]
[EventCountry "POL"]
[SourceTitle "playchess.com"]
[Source "ChessBase"]
[SourceQuality "1"]
[TimeControl "40/5400+30:1800+30"]

1. e4 {[%emt 0:00:00]} c5 {[%emt 0:00:00]} 2. Nf3 {[%emt 0:00:00]} e6 {[%emt 0:00:00]} 3. c4 {[%emt 0:01:32]} Nc6 {[%emt 0:00:00]} 4. Nc3 {[%emt 0:00:25]} Nd4 {[%emt 0:00:00]} 5. Nxd4 {[%emt 0:00:50]} cxd4 {[%emt 0:00:04]} 6. Ne2 {[%emt 0:00:01]} e5 {[%emt 0:00:07]} 7. Ng3 {[%emt 0:00:14]} g6 {[%emt 0:01:02]} 8. Be2 {[%emt 0:01:02]} h5 {[%emt 0:00:05]} 9. O-O {[%emt 0:02:27]} Nf6 {[%emt 0:00:05]} 10. d3 {[%emt 0:07:46]} Be7 {[%emt 0:00:06]} 11. f4 {[%emt 0:02:02]} d6 {[%emt 0:00:01]} 12. Qe1 {[%emt 0:28:24]} Bd7 {[%emt 0:21:58]} 13. Bd2 {[%emt 0:14:06]} a5 {[%emt 0:06:30]} 14. Qf2 {[%emt 0:06:41]} Rh7 {[%emt 0:22:01]} 15. h3 {[%emt 0:15:03]} Ra6 {[%emt 0:15:14]} 16. b4 {[%emt 0:07:11]} axb4 {[%emt 0:00:54]} 17. Bxb4 {[%emt 0:00:04]} Bc8 {[%emt 0:00:31]} 18. Bd1 {[%emt 0:04:22]} Nd7 {[%emt 0:00:24]} 19. Bb3 {[%emt 0:03:55]} Nc5 {[%emt 0:00:20]} 20. Qc2 {[%emt 0:02:07]} Qb6 {[%emt 0:01:20]} 21. Bxc5 {[%emt 0:00:33]} dxc5 {[%emt 0:04:12]} 22. Ba4+ {[%emt 0:00:08]} Kf8 {[%emt 0:00:19]} 23. f5 {[%emt 0:02:00]} Kg8 {[%emt 0:02:02]} 24. fxg6 {[%emt 0:00:28]} fxg6 {[%emt 0:00:06]} 25. Bb5 {[%emt 0:00:16]} Ra8 {[%emt 0:01:17]} 26. Rf3 {[%emt 0:00:13]} Be6 {[%emt 0:01:11]} 27. a4 {[%emt 0:00:34]} Bg5 {[%emt 0:02:13]} 28. Raf1 {[%emt 0:01:00]} Rf7 {[%emt 0:03:58]} 29. Rxf7 {[%emt 0:00:20]} Bxf7 {[%emt 0:00:05]} 30. Kh1 {[%emt 0:00:23]} Be6 {[%emt 0:01:53]} 31. Qf2 {[%emt 0:00:26]} Qc7 {[%emt 0:00:28]} 32. Ne2 {[%emt 0:00:26]} Qg7 {[%emt 0:00:35]} 33. Qg3 {[%emt 0:00:57]} Be3 {[%emt 0:00:09]} 34. Ng1 {[%emt 0:00:25]} g5 {[%emt 0:00:17]} 35. Qf3 {[%emt 0:00:23]} g4 {[%emt 0:15:24]} 36. Qf6 {[%emt 0:00:13]} Qf7 {[%emt 0:00:31]} 37. Qxf7+ {[%emt 0:00:35]} Bxf7 {[%emt 0:00:04]} 38. Ne2 {[%emt 0:00:53]} gxh3 {[%emt 0:00:36]} 39. gxh3 {[%emt 0:00:26]} Be6 {[%emt 0:00:06]} 40. Kh2 {[%emt 0:00:00]} Kg7 {[%emt 0:00:00]} 41. h4 {[%emt 0:12:52]} Rg8 {[%emt 0:04:23]} 42. a5 {[%emt 0:00:36]} Bg4 {[%emt 0:01:57]} 43. Ng1 {[%emt 0:00:57]} Bf4+ {[%emt 0:06:54]} 44. Kh1 {[%emt 0:00:23]} Ra8 {[%emt 0:00:03]} 45. Ra1 {[%emt 0:02:07]} Bg3 {[%emt 0:00:05]} 46. Kg2 {[%emt 0:01:08]} Bxh4 {[%emt 0:00:11]} 47. Nf3 {[%emt 0:00:02]} Bxf3+ {[%emt 0:01:15]} 48. Kxf3 {[%emt 0:00:08]} Rf8+ {[%emt 0:00:14]} 49. Kg2 {[%emt 0:00:15]} Rf2+ {[%emt 0:00:21]} 50. Kg1 {[%emt 0:00:41]} Rb2 {[%emt 0:00:15]} 51. Be8 {[%emt 0:03:16]} Bf2+ {[%emt 0:04:15]} 52. Kg2 {[%emt 0:00:03]} Kh6 {[%emt 0:02:10]} 53. a6 {[%emt 0:11:52]} bxa6 {[%emt 0:01:54]} 54. Rxa6+ {[%emt 0:00:10]} Kg5 {[%emt 0:00:23]} 55. Rc6 {[%emt 0:02:42]} Be1+ {[%emt 0:07:19]} 56. Kh3 {[%emt 0:00:48]} h4 {[%emt 0:00:43]} 57. Rg6+ {[%emt 0:01:03]} Kf4 {[%emt 0:00:06]} 58. Rf6+ {[%emt 0:00:24]} Ke3 {[%emt 0:00:05]} 59. Rc6 {[%emt 0:00:30]} Kxd3 {[%emt 0:02:06]} 60. Rxc5 {[%emt 0:00:03]} Kxe4 {[%emt 0:00:11]} 61. Kg4 {[%emt 0:01:05]} Rg2+ {[%emt 0:01:21]} 62. Kh3 {[%emt 0:00:06]} Rg3+ {[%emt 0:02:41]} 63. Kh2 {[%emt 0:00:03]} d3 {[%emt 0:00:26]} 64. Rd5 {[%emt 0:00:56]} d2 {[%emt 0:01:58]} 65. Bc6 {[%emt 0:00:55]} Rd3 {[%emt 0:00:48]} 0-1

[Event "XIX Najdorf Memorial 2019"]
[Site "Warsaw"]
[Date "2019.07.09"]
[Round "4.8"]
[White "Roseneck, Jonas"]
[Black "AlHuwar, Jasem"]
[Result "1/2-1/2"]
[ECO "C10"]
[WhiteElo "2398"]
[BlackElo "2255"]
[Annotator "NA"]
[PlyCount "77"]
[EventDate "2019.07.06"]
[EventType "swiss"]
[EventCountry "POL"]
[SourceTitle "playchess.com"]
[Source "ChessBase"]
[SourceQuality "1"]
[TimeControl "40/5400+30:1800+30"]

1. e4 {[%emt 0:00:00]} e6 {[%emt 0:21:46]} 2. d4 {[%emt 0:00:00]} d5 {[%emt 0:00:06]} 3. Nd2 {[%emt 0:00:00]} dxe4 {[%emt 0:00:06]} 4. Nxe4 {[%emt 0:00:00]} Nd7 {[%emt 0:00:05]} 5. Nf3 {[%emt 0:00:00]} Ngf6 {[%emt 0:00:15]} 6. Nxf6+ {[%emt 0:00:06]} Nxf6 {[%emt 0:00:07]} 7. g3 {[%emt 0:00:03]} c5 {[%emt 0:06:18]} 8. Bg2 {[%emt 0:00:06]} cxd4 {[%emt 0:04:57]} 9. Qxd4 {[%emt 0:00:21]} Qxd4 {[%emt 0:02:32]} 10. Nxd4 {[%emt 0:00:01]} a6 {[%emt 0:00:06]} 11. Bd2 {[%emt 0:00:06]} Be7 {[%emt 0:04:03]} 12. O-O {[%emt 0:11:28]} O-O {[%emt 0:00:12]} 13. c4 {[%emt 0:03:11]} Rd8 {[%emt 0:04:27]} 14. Nb3 {[%emt 0:00:59]} e5 {[%emt 0:03:45]} 15. Ba5 {[%emt 0:14:00]} Re8 {[%emt 0:09:01]} 16. Rfe1 {[%emt 0:00:34]} e4 {[%emt 0:00:16]} 17. Nd2 {[%emt 0:03:30]} Bf5 {[%emt 0:02:45]} 18. Nxe4 {[%emt 0:07:21]} Nxe4 {[%emt 0:01:42]} 19. Bxe4 {[%emt 0:00:05]} Bb4 {[%emt 0:00:21]} 20. Bxf5 {[%emt 0:07:36]} Bxa5 {[%emt 0:00:08]} 21. Rxe8+ {[%emt 0:00:19]} Rxe8 {[%emt 0:00:07]} 22. Kf1 {[%emt 0:00:05]} g6 {[%emt 0:02:57]} 23. Bh3 {[%emt 0:11:03]} Rd8 {[%emt 0:01:38]} 24. a3 {[%emt 0:01:42]} Bc7 {[%emt 0:01:28]} 25. b4 {[%emt 0:13:11]} b6 {[%emt 0:00:45]} 26. Re1 {[%emt 0:03:48]} Kf8 {[%emt 0:00:23]} 27. Re3 {[%emt 0:01:11]} Rd4 {[%emt 0:01:27]} 28. Bc8 {[%emt 0:01:09]} a5 {[%emt 0:00:39]} 29. bxa5 {[%emt 0:06:28]} bxa5 {[%emt 0:02:25]} 30. Ba6 {[%emt 0:00:28]} Bd6 {[%emt 0:00:58]} 31. Ke2 {[%emt 0:05:05]} Kg7 {[%emt 0:05:20]} 32. a4 {[%emt 0:01:07]} Kf6 {[%emt 0:00:49]} 33. Rc3 {[%emt 0:02:00]} Bb4 {[%emt 0:02:24]} 34. Rc2 {[%emt 0:00:28]} Bc5 {[%emt 0:00:06]} 35. Bb7 {[%emt 0:00:10]} Rd6 {[%emt 0:00:42]} 36. Rb2 {[%emt 0:03:33]} Rb6 {[%emt 0:02:26]} 37. Rb5 {[%emt 0:00:20]} Rxb5 {[%emt 0:00:14]} 38. cxb5 {[%emt 0:00:53]} Ke5 {[%emt 0:00:07]} 39. Bc6 {[%emt 0:05:08]} 1/2-1/2

[Event "XIX Najdorf Memorial 2019"]
[Site "Warsaw"]
[Date "2019.07.09"]
[Round "4.9"]
[White "Shyam, Sundar M."]
[Black "Goslawski, Michal"]
[Result "1/2-1/2"]
[ECO "C42"]
[WhiteElo "2520"]
[BlackElo "2091"]
[Annotator "ChessBase"]
[PlyCount "108"]
[EventDate "2019.07.06"]
[EventType "swiss"]
[EventCountry "POL"]
[SourceTitle "playchess.com"]
[Source "ChessBase"]
[SourceQuality "1"]
[TimeControl "40/5400+30:1800+30"]

1. e4 {[%emt 0:01:39]} e5 {[%emt 0:00:00]} 2. Nf3 {[%emt 0:00:36]} Nf6 {[%emt 0:00:00]} 3. Nxe5 {[%emt 0:00:52]} d6 {[%emt 0:00:00]} 4. Nf3 {[%emt 0:00:04]} Nxe4 {[%emt 0:00:00]} 5. d4 {[%emt 0:00:03]} d5 {[%emt 0:00:06]} 6. Bd3 {[%emt 0:00:07]} Nc6 {[%emt 0:00:08]} 7. O-O {[%emt 0:00:10]} Be7 {[%emt 0:00:04]} 8. Nbd2 {[%emt 0:00:06]} Nxd2 {[%emt 0:01:52]} 9. Bxd2 {[%emt 0:00:06]} Bg4 {[%emt 0:00:16]} 10. c3 {[%emt 0:00:05]} O-O {[%emt 0:06:46]} 11. h3 {[%emt 0:00:05]} Bh5 {[%emt 0:01:41]} 12. g3 {[%emt 0:00:07]} Bg6 {[%emt 0:01:30]} 13. Bxg6 {[%emt 0:00:07]} hxg6 {[%emt 0:00:11]} 14. Kg2 {[%emt 0:00:15]} Re8 {[%emt 0:00:52]} 15. Re1 {[%emt 0:03:16]} Qd7 {[%emt 0:04:26]} 16. Qc2 {[%emt 0:14:22]} b6 {[%emt 0:05:01]} 17. Qd3 {[%emt 0:02:49]} Bf8 {[%emt 0:05:57]} 18. Qb5 {[%emt 0:10:03]} Ne5 {[%emt 0:08:41]} 19. Qxd7 {[%emt 0:00:05]} Nxd7 {[%emt 0:00:08]} 20. Bf4 {[%emt 0:00:02]} Rxe1 {[%emt 0:02:05]} 21. Nxe1 {[%emt 0:05:32]} Rc8 {[%emt 0:04:12]} 22. a4 {[%emt 0:00:05]} Be7 {[%emt 0:11:33]} 23. h4 {[%emt 0:00:29]} Nf8 {[%emt 0:00:26]} 24. Nd3 {[%emt 0:12:23]} f6 {[%emt 0:00:48]} 25. a5 {[%emt 0:12:22]} Ne6 {[%emt 0:01:44]} 26. axb6 {[%emt 0:01:00]} axb6 {[%emt 0:00:04]} 27. Ra7 {[%emt 0:01:18]} Kf8 {[%emt 0:01:00]} 28. g4 {[%emt 0:03:42]} Ke8 {[%emt 0:08:05]} 29. Bg3 {[%emt 0:00:56]} c5 {[%emt 0:04:46]} 30. Rb7 {[%emt 0:14:41]} Rc6 {[%emt 0:03:24]} 31. dxc5 {[%emt 0:05:16]} bxc5 {[%emt 0:00:28]} 32. Nf4 {[%emt 0:05:16]} Nxf4+ {[%emt 0:02:25]} 33. Bxf4 {[%emt 0:00:02]} Re6 {[%emt 0:01:27]} 34. Kf3 {[%emt 0:00:15]} Re4 {[%emt 0:01:56]} 35. Rb8+ {[%emt 0:03:29]} Kf7 {[%emt 0:00:18]} 36. Rb5 {[%emt 0:00:02]} f5 {[%emt 0:01:21]} 37. gxf5 {[%emt 0:00:02]} gxf5 {[%emt 0:00:07]} 38. h5 {[%emt 0:00:04]} Ke6 {[%emt 0:13:24]} 39. Rb6+ {[%emt 0:01:51]} Kf7 {[%emt 0:01:09]} 40. Rb5 {[%emt 0:00:00]} Ke6 {[%emt 0:00:00]} 41. Rb6+ {[%emt 0:08:13]} Kf7 {[%emt 0:00:27]} 42. Rb7 {[%emt 0:00:02]} Ke6 {[%emt 0:00:09]} 43. Bd2 {[%emt 0:01:22]} c4 {[%emt 0:04:38]} 44. Be3 {[%emt 0:02:53]} Bf6 {[%emt 0:00:49]} 45. Rb6+ {[%emt 0:00:22]} Kd7 {[%emt 0:01:00]} 46. h6 {[%emt 0:00:43]} Rg4 {[%emt 0:02:12]} 47. Ra6 {[%emt 0:15:50]} Be5 {[%emt 0:02:21]} 48. hxg7 {[%emt 0:04:13]} Bxg7 {[%emt 0:04:51]} 49. Bf4 {[%emt 0:00:05]} Ke7 {[%emt 0:00:38]} 50. Ra7+ {[%emt 0:00:32]} Ke6 {[%emt 0:00:45]} 51. Ra6+ {[%emt 0:00:03]} Ke7 {[%emt 0:00:10]} 52. Rb6 {[%emt 0:01:05]} d4 {[%emt 0:04:35]} 53. cxd4 {[%emt 0:00:13]} Bxd4 {[%emt 0:00:14]} 54. Rb4 {[%emt 0:00:15]} Bf6 {[%emt 0:02:43] Ke4} 1/2-1/2

[Event "XIX Najdorf Memorial 2019"]
[Site "Warsaw"]
[Date "2019.07.09"]
[Round "4.9"]
[White "Krysztofiak, Marcin"]
[Black "Zebracki, Tomasz"]
[Result "1-0"]
[ECO "A34"]
[WhiteElo "2382"]
[BlackElo "2183"]
[Annotator "NA"]
[PlyCount "95"]
[EventDate "2019.07.06"]
[EventType "swiss"]
[EventCountry "POL"]
[SourceTitle "playchess.com"]
[Source "ChessBase"]
[SourceQuality "1"]
[TimeControl "40/5400+30:1800+30"]

1. c4 {[%emt 0:00:00]} c5 {[%emt 0:00:00]} 2. Nf3 {[%emt 0:00:00]} Nf6 {[%emt 0:00:00]} 3. Nc3 {[%emt 0:00:14]} d5 {[%emt 0:00:00]} 4. cxd5 {[%emt 0:00:16]} Nxd5 {[%emt 0:00:04]} 5. d4 {[%emt 0:00:27]} cxd4 {[%emt 0:04:26]} 6. Qxd4 {[%emt 0:00:41]} Nxc3 {[%emt 0:01:07]} 7. Qxc3 {[%emt 0:00:20]} Nc6 {[%emt 0:01:23]} 8. e4 {[%emt 0:01:19]} Bg4 {[%emt 0:06:51]} 9. Bb5 {[%emt 0:07:47]} Rc8 {[%emt 0:00:13]} 10. O-O {[%emt 0:03:57]} Bxf3 {[%emt 0:00:16]} 11. Qxf3 {[%emt 0:00:34]} Qa5 {[%emt 0:11:17]} 12. Qb3 {[%emt 0:18:21]} e5 {[%emt 0:08:01]} 13. Be3 {[%emt 0:02:35]} Be7 {[%emt 0:22:20]} 14. Bxc6+ {[%emt 0:11:11]} bxc6 15. Qb7 {[%emt 0:00:29]} Rc7 {[%emt 0:16:47]} 16. Qb8+ {[%emt 0:06:43]} Bd8 {[%emt 0:00:01]} 17. Rfd1 {[%emt 0:01:44]} Re7 {[%emt 0:01:28]} 18. b4 {[%emt 0:06:38]} Qc7 {[%emt 0:01:22]} 19. Bxa7 {[%emt 0:00:13]} Qxb8 {[%emt 0:13:33]} 20. Bxb8 {[%emt 0:00:09]} Rb7 {[%emt 0:00:09]} 21. Bd6 {[%emt 0:07:37]} Be7 {[%emt 0:00:01]} 22. a3 {[%emt 0:01:52]} Bxd6 {[%emt 0:04:51]} 23. Rxd6 {[%emt 0:00:05]} Ke7 {[%emt 0:00:01]} 24. Rxc6 {[%emt 0:00:12]} Rd8 {[%emt 0:00:01]} 25. Rc2 {[%emt 0:05:21]} Rd3 {[%emt 0:01:26]} 26. f3 {[%emt 0:02:35]} Rb3 {[%emt 0:00:57]} 27. Rc5 {[%emt 0:02:22]} Kf6 {[%emt 0:01:55]} 28. Ra2 {[%emt 0:02:48]} Ra7 {[%emt 0:02:27]} 29. Ra5 {[%emt 0:05:34]} Rxa5 {[%emt 0:01:01]} 30. bxa5 {[%emt 0:00:04]} Rb5 {[%emt 0:00:33]} 31. a4 {[%emt 0:00:45]} Rxa5 {[%emt 0:00:01]} 32. Kf2 {[%emt 0:00:05]} h5 {[%emt 0:00:43]} 33. Ke3 {[%emt 0:00:23]} Kg5 {[%emt 0:01:20]} 34. g3 {[%emt 0:04:14]} h4 {[%emt 0:00:21]} 35. Kd3 {[%emt 0:00:17]} g6 {[%emt 0:01:12]} 36. Kc4 {[%emt 0:00:58]} hxg3 {[%emt 0:00:32]} 37. hxg3 {[%emt 0:00:01]} f5 {[%emt 0:00:06]} 38. Kb4 {[%emt 0:00:43]} Ra8 {[%emt 0:00:02]} 39. a5 {[%emt 0:01:54]} Kf6 {[%emt 0:02:00]} 40. a6 {[%emt 0:00:00]} g5 {[%emt 0:00:00]} 41. g4 {[%emt 0:01:44]} fxg4 {[%emt 0:00:30]} 42. fxg4 {[%emt 0:00:06]} Ke6 {[%emt 0:00:06]} 43. a7 {[%emt 0:01:37]} Kd6 {[%emt 0:00:15]} 44. Kb5 {[%emt 0:00:12]} Kc7 {[%emt 0:00:56]} 45. Ka6 {[%emt 0:02:32]} Rf8 {[%emt 0:03:11]} 46. Rc2+ {[%emt 0:00:05]} Kd6 {[%emt 0:01:09]} 47. Kb7 {[%emt 0:00:09]} Rf7+ {[%emt 0:04:27]} 48. Kb8 {[%emt 0:00:26] Kd5} 1-0